bitfinex/quotes_ETHUSD_20251120
["timestamp","ask_amount","ask_price","bid_price","bid_amount"]
[1763679572614,0.4571,2893.0,2892.9,0.001]
[1763679572986,0.9568,2893.0,2892.9,0.001]
[1763679573214,0.4571,2893.0,2892.9,0.001]
[1763679573440,0.4997,2893.3,2892.9,0.001]
[1763679573713,0.002,2893.2,2892.9,0.001]
[1763679573917,0.002,2893.2,2893.0,0.405504]
[1763679574115,0.002,2893.2,2892.9,0.4839]
[1763679574116,0.002,2893.2,2893.1,0.405504]
[1763679574508,0.002,2893.2,2893.1,0.992004]
[1763679574695,0.002,2893.2,2893.1,0.405504]
[1763679574900,0.4591,2893.2,2893.1,0.405504]
[1763679575082,0.002,2893.2,2893.1,0.405504]
[1763679575920,0.002,2893.2,2893.1,0.992004]
[1763679576217,0.002,2893.2,2893.1,1.474904]
[1763679576418,0.002,2893.2,2893.1,0.992004]
[1763679577110,0.002,2893.2,2893.1,1.474904]
[1763679577329,0.002,2893.2,2893.1,0.992004]
[1763679577526,0.002,2893.2,2893.1,1.474904]
[1763679579953,0.002,2893.2,2893.1,0.405504]
[1763679580245,0.002,2893.2,2893.1,0.874804]
[1763679580717,0.486,2893.2,2893.1,0.405504]
[1763679581240,0.002,2893.2,2893.1,0.405504]
[1763679581417,0.002,2893.2,2893.1,0.874804]
[1763679583864,0.002,2893.2,2892.9,0.001]
[1763679583865,0.9811,2893.2,2892.9,0.001]
[1763679584008,0.2891,2893.0,2892.9,0.001]
[1763679584409,0.7842,2893.0,2892.9,0.001]
[1763679585313,1.32684709,2893.0,2892.9,0.001]
[1763679585514,0.7842,2893.0,2892.9,0.001]
[1763679588012,1.54302146,2893.0,2892.9,0.001]
[1763679588208,3.50931652,2893.0,2892.9,0.001]
[1763679588512,0.90699264,2892.9,2892.6,0.001]
[1763679588714,0.6718,2892.7,2892.0,0.001]
[1763679588921,0.6176389,2892.6,2892.0,0.001]
[1763679589121,1.85140242,2892.6,2892.0,0.001]
[1763679590439,3.622875,2892.5,2891.7,0.001]
[1763679590612,0.90699264,2891.5,2891.1,0.001]
[1763679590813,3.78923164,2891.2,2890.9,0.18189236]
[1763679591124,1.39099264,2891.0,2889.3,0.4802]
[1763679591342,0.4828,2890.9,2889.3,0.4802]
[1763679591651,1.2974241,2890.9,2889.3,0.4802]
[1763679591851,2.03360596,2890.9,2889.4,0.405504]
[1763679592147,2.03360596,2890.9,2889.3,0.4802]
[1763679592362,0.9779,2890.9,2890.1,0.122]
[1763679592523,0.9779,2890.9,2889.6,0.4802]
[1763679594430,0.9779,2890.9,2889.7,0.405504]
[1763679594630,0.9779,2890.9,2890.1,0.122]
[1763679595243,0.1898,2891.2,2890.2,0.405504]
[1763679595566,0.4951,2891.4,2890.8,0.4703]
[1763679597662,0.4951,2891.4,2890.8,0.001]
[1763679598062,0.484,2890.9,2890.8,0.001]
[1763679599066,0.54296712,2890.9,2890.8,0.4703]
[1763679600062,0.54296712,2890.9,2890.8,0.001]
[1763679600228,1.52206712,2890.9,2890.8,0.001]
[1763679600766,5.57505976,2890.9,2890.8,0.001]
[1763679600966,5.57505976,2890.9,2889.5,0.63680087]
[1763679600967,6.80201463,2890.1,2889.5,0.63680087]
[1763679601168,0.4951,2890.8,2889.6,0.4802]
[1763679601354,0.4951,2890.8,2890.0,0.4693]
[1763679601531,0.4951,2891.1,2890.1,0.405504]
[1763679601732,0.4951,2891.1,2890.1,1.008704]
[1763679601956,0.4951,2891.4,2890.2,0.405504]
[1763679602146,0.1898,2891.9,2890.4,0.405504]
[1763679602350,0.18292483,2891.8,2890.5,0.03459609]
[1763679602637,0.4951,2891.8,2890.3,0.405504]
[1763679602946,0.90699264,2891.7,2890.3,0.405504]
[1763679603377,0.4951,2891.6,2890.5,0.405504]
[1763679603672,0.1898,2891.9,2890.5,0.405504]
[1763679603874,0.1898,2891.9,2890.7,0.405504]
[1763679604050,0.4951,2892.1,2890.7,0.405504]
[1763679604250,0.54289246,2891.7,2890.9,0.405504]
[1763679604774,0.54289246,2891.7,2891.1,0.405504]
[1763679604943,0.54289246,2891.7,2891.2,0.1001]
[1763679605990,1.03799246,2891.7,2890.9,0.1001]
[1763679607766,0.54289246,2891.7,2890.9,0.1001]
[1763679608074,0.54289246,2891.7,2891.0,0.405504]
[1763679608261,0.54289246,2891.7,2891.1,0.4802]
[1763679608862,0.54489246,2891.7,2891.1,0.4802]
[1763679609062,0.54489246,2891.7,2891.0,0.405504]
[1763679609614,1.04159246,2891.7,2891.0,0.405504]
[1763679610100,0.4553,2891.1,2890.8,0.001]
[1763679610285,0.4967,2891.6,2890.8,0.001]
[1763679610488,0.19485851,2891.5,2890.8,0.001]
[1763679611334,0.54489246,2891.7,2891.0,0.405504]
[1763679611616,0.002,2891.7,2891.0,0.405504]
[1763679611769,0.002,2891.7,2891.1,0.1001]
[1763679612797,0.4987,2891.7,2890.8,0.406504]
[1763679613394,0.002,2891.7,2891.0,0.405504]
[1763679614302,0.002,2891.7,2890.8,0.4832]
[1763679614509,0.002,2891.7,2890.9,0.405504]
[1763679614804,0.002,2891.7,2891.6,0.862704]
[1763679615306,0.002,2891.7,2891.6,1.344904]
[1763679615504,0.002,2892.0,2891.7,0.405504]
[1763679615679,0.002,2892.0,2891.9,0.862704]
[1763679616006,0.002,2892.3,2892.0,0.405504]
[1763679616169,0.002,2892.3,2892.2,1.006504]
[1763679616371,0.002,2893.2,2892.3,0.405504]
[1763679616571,0.002,2893.2,2893.1,0.862704]
[1763679617068,0.002,2893.2,2893.1,1.344904]
[1763679617709,0.002,2893.2,2893.1,0.862704]
[1763679617891,0.002,2893.2,2893.1,1.344904]
[1763679619621,0.002,2893.5,2893.2,0.405504]
[1763679619770,0.002,2893.5,2893.4,0.862704]
[1763679619970,0.002,2893.5,2893.4,1.344904]
[1763679621518,0.002,2893.5,2893.4,0.862704]
[1763679621874,0.954,2893.5,2891.8,7.48439893]
[1763679622094,0.287,2893.2,2892.2,0.626]
[1763679622306,0.287,2893.2,2892.3,0.4822]
[1763679622908,0.287,2893.2,2892.4,0.405504]
[1763679623421,0.002,2893.5,2893.2,0.405504]
[1763679623645,0.002,2893.5,2893.4,0.4572]
[1763679623787,0.002,2893.5,2893.4,0.862704]
[1763679624110,0.002,2893.5,2893.4,1.344904]
[1763679625120,0.54434667,2893.5,2893.4,1.344904]
[1763679625321,0.002,2893.5,2893.4,1.344904]
[1763679625622,0.002,2893.8,2893.4,1.344904]
[1763679625623,0.002,2893.8,2893.5,0.405504]
[1763679625834,0.002,2894.2,2893.5,0.405504]
[1763679625835,0.002,2894.2,2894.0,0.405504]
[1763679626065,0.002,2894.2,2894.1,0.974304]
[1763679626241,0.002,2894.6,2894.2,0.405504]
[1763679626386,0.002,2894.6,2894.5,0.862704]
[1763679626931,0.002,2894.6,2894.5,0.405504]
[1763679627640,0.002,2894.6,2894.0,0.405504]
[1763679627641,0.954,2894.6,2894.0,0.405504]
[1763679628314,0.54226159,2894.5,2894.0,0.405504]
[1763679628815,0.4987,2894.6,2894.0,0.405504]
[1763679629508,0.002,2894.6,2894.0,0.405504]
[1763679630342,0.4615,2894.6,2893.1,0.405504]
[1763679630552,0.002,2894.6,2893.4,0.405504]
[1763679631029,0.002,2894.6,2893.3,0.4606]
[1763679631030,0.002,2894.6,2893.6,0.405504]
[1763679631430,0.002,2894.6,2894.5,0.984704]
[1763679631632,0.002,2894.9,2894.6,0.405504]
[1763679631845,0.002,2894.9,2894.5,1.445304]
[1763679631846,0.002,2895.2,2895.0,0.405504]
[1763679632144,0.002,2895.2,2895.1,1.016904]
[1763679632639,0.002,2895.2,2895.1,1.477504]
[1763679633107,0.002,2895.2,2895.1,1.016904]
[1763679633427,0.002,2895.2,2895.1,0.405504]
[1763679633634,0.3615,2895.8,2894.8,0.405504]
[1763679634612,0.3615,2895.8,2894.5,0.1096]
[1763679634847,0.3615,2895.8,2893.3,3.94887111]
[1763679634848,0.3615,2895.8,2894.0,0.6024]
[1763679635144,0.3615,2895.8,2894.0,0.1418]
[1763679635350,6.80201463,2895.7,2893.2,6.80201463]
[1763679635520,0.3615,2895.8,2893.0,0.5722]
[1763679635521,0.1932,2894.1,2893.0,0.5722]
[1763679636106,0.1932,2894.2,2893.1,0.405504]
[1763679636338,0.1932,2894.2,2893.3,0.405504]
[1763679636832,0.1932,2894.2,2893.4,0.405504]
[1763679637030,0.1932,2894.2,2893.3,0.4606]
[1763679637374,0.1932,2894.2,2893.4,0.405504]
[1763679637575,0.6527,2894.2,2893.4,0.405504]
[1763679637870,0.6527,2894.2,2893.0,0.5722]
[1763679638052,0.6527,2894.2,2893.1,0.405504]
[1763679638636,0.4631,2894.1,2893.0,0.5722]
[1763679638841,0.54237953,2894.0,2893.1,0.405504]
[1763679639090,0.54237953,2894.0,2893.0,0.1116]
[1763679639262,0.54237953,2894.0,2892.4,0.4976]
[1763679639263,0.6506,2893.9,2892.4,0.4976]
[1763679639461,0.6506,2893.9,2892.5,0.405504]
[1763679639662,0.4631,2893.8,2892.5,0.405504]
[1763679640376,0.4631,2893.8,2892.4,0.001]
[1763679641249,0.22891915,2893.7,2892.4,0.001]
[1763679641642,0.4631,2893.6,2892.4,0.001]
[1763679642779,0.1875,2893.9,2892.6,1.31249664]
[1763679643080,0.1932,2894.2,2893.0,1.31249664]
[1763679643281,0.1932,2894.2,2893.2,0.405504]
[1763679644778,0.002,2893.8,2893.2,0.405504]
[1763679647284,0.002,2893.8,2893.4,0.405504]
[1763679648358,0.002,2893.8,2893.4,0.4966]
[1763679649246,0.002,2893.8,2893.2,0.405504]
[1763679651988,0.4651,2893.8,2892.8,0.4966]
[1763679652150,0.4651,2893.8,2893.1,0.1116]
[1763679652364,0.4651,2893.8,2893.2,0.405504]
[1763679652569,0.4651,2893.8,2893.1,0.1116]
[1763679653066,0.4651,2893.8,2893.2,0.405504]
[1763679653898,0.002,2893.8,2893.2,0.902104]
[1763679654104,0.002,2893.8,2893.7,0.895504]
[1763679654605,0.002,2893.8,2893.7,1.392104]
[1763679655688,0.002,2893.8,2893.7,0.895504]
[1763679656131,0.002,2893.8,2893.7,1.392104]
[1763679657215,0.002,2893.8,2893.7,0.895504]
[1763679657719,0.9608,2893.8,2893.1,0.1116]
[1763679658011,0.9608,2893.8,2893.2,0.405504]
[1763679658174,0.002,2893.8,2893.2,0.405504]
[1763679658911,0.1875,2893.9,2893.2,0.405504]
[1763679658912,0.64914398,2893.9,2893.2,0.405504]
[1763679659093,0.64914398,2893.9,2893.1,0.1116]
[1763679659481,0.64914398,2893.9,2893.2,0.405504]
[1763679660271,0.4957,2893.3,2892.4,0.4976]
[1763679660606,0.4957,2893.3,2892.5,0.405504]
[1763679660924,0.64914398,2893.9,2893.3,0.405504]
[1763679661406,0.002,2894.1,2893.3,0.4966]
[1763679661604,0.002,2894.1,2894.0,0.895504]
[1763679661807,0.9608,2894.1,2894.0,0.405504]
[1763679662007,0.9608,2894.1,2893.3,0.405504]
[1763679662704,0.4631,2894.0,2893.3,0.405504]
[1763679662906,0.4977,2894.1,2893.3,0.405504]
[1763679663105,0.002,2894.1,2893.3,0.902104]
[1763679663506,0.002,2894.1,2893.5,0.405504]
[1763679664497,0.002,2894.1,2893.3,0.405504]
[1763679664701,0.002,2894.1,2893.6,0.405504]
[1763679665214,0.6832,2893.7,2893.1,0.001]
[1763679665510,0.2258,2893.6,2893.1,0.001]
[1763679666385,0.2258,2893.6,2893.1,0.519504]
[1763679666935,0.1875,2893.7,2893.1,0.519504]
[1763679667220,0.4651,2894.1,2893.7,0.405504]
[1763679667425,0.7408011,2894.1,2893.7,0.405504]
[1763679667627,0.002,2894.1,2893.5,0.405504]
[1763679669280,0.4574,2894.0,2893.1,0.114]
[1763679669527,0.4574,2894.0,2893.2,0.405504]
[1763679669709,0.1842,2893.9,2893.2,0.405504]
[1763679669896,0.1842,2893.9,2893.1,0.001]
[1763679670096,0.1842,2893.9,2893.2,0.405504]
[1763679671496,0.4658,2893.3,2893.2,0.405504]
[1763679671843,0.4658,2893.3,2893.1,0.001]
[1763679672136,0.9232,2893.3,2893.1,0.001]
[1763679672335,0.2643,2893.2,2893.1,0.001]
[1763679672732,0.7217,2893.2,2893.1,0.001]
[1763679674606,0.1842,2893.9,2893.2,0.405504]
[1763679674800,1.23161361,2894.4,2893.9,0.405504]
[1763679674801,0.002,2894.4,2893.9,0.405504]
[1763679675253,0.002,2894.4,2894.0,0.874404]
[1763679675632,0.002,2894.4,2894.0,1.324404]
[1763679675871,0.002,2894.4,2894.0,0.874404]
[1763679676365,0.002,2894.4,2894.0,1.324404]
[1763679676524,0.002,2894.4,2894.1,0.405504]
[1763679676722,0.002,2894.4,2894.3,1.025704]
[1763679677351,0.002,2894.4,2894.3,0.405504]
[1763679677976,0.4678,2894.4,2894.3,0.405504]
[1763679678260,0.4678,2894.4,2893.9,0.1513]
[1763679678559,0.4678,2894.4,2893.5,0.45]
[1763679678560,0.9252,2894.4,2893.5,0.45]
[1763679678862,0.9252,2894.4,2893.6,0.405504]
[1763679679063,0.002,2894.4,2893.6,0.405504]
[1763679679264,0.002,2894.4,2893.7,0.405504]
[1763679681867,0.65,2893.8,2893.5,0.001]
[1763679682037,0.4638,2893.6,2893.5,0.001]
[1763679682446,0.4574,2894.2,2893.5,0.001]
[1763679682650,0.002,2894.4,2893.5,0.001]
[1763679682849,0.002,2894.4,2893.7,0.405504]
[1763679683055,0.002,2894.4,2894.3,1.025704]
[1763679683468,0.002,2894.4,2894.3,1.475704]
[1763679685647,0.002,2894.4,2894.3,1.025704]
[1763679685976,0.002,2894.4,2893.8,0.45]
[1763679685977,0.002,2894.4,2894.0,0.1513]
[1763679686539,0.002,2894.4,2894.1,0.405504]
[1763679689485,0.002,2894.4,2894.1,0.855504]
[1763679689693,0.002,2894.4,2894.1,0.45]
[1763679690394,0.002,2894.4,2894.0,0.1513]
[1763679690596,0.002,2894.4,2894.1,0.405504]
[1763679695863,0.002,2894.4,2894.3,0.4732]
[1763679696072,0.4985,2894.2,2893.5,0.406504]
[1763679696292,0.4985,2894.2,2893.5,0.869904]
[1763679697705,0.4985,2894.2,2893.5,0.986904]
[1763679698575,0.002,2894.2,2893.5,0.979804]
[1763679698774,0.002,2894.2,2894.1,1.017604]
[1763679701294,0.002,2894.2,2894.1,0.405504]
[1763679702415,0.4643,2894.2,2894.1,0.405504]
[1763679702614,0.949,2894.2,2893.5,0.001]
[1763679702777,0.4847,2894.1,2893.5,0.001]
[1763679703107,0.4347,2894.1,2893.5,0.001]
[1763679703924,0.4623,2893.6,2893.5,0.001]
[1763679704510,0.1887,2893.8,2893.5,0.001]
[1763679704873,0.4623,2893.6,2893.5,0.001]
[1763679705280,0.73104308,2893.8,2893.5,0.001]
[1763679706510,0.1887,2893.8,2893.5,0.001]
[1763679709115,0.6734,2893.8,2893.5,0.001]
[1763679709680,0.4623,2893.6,2893.5,0.001]
[1763679710114,0.947,2893.6,2893.5,0.001]
[1763679713711,1.13433969,2893.6,2893.5,0.001]
[1763679715734,1.13433969,2893.6,2893.2,0.001]
[1763679715933,0.1437,2893.3,2893.2,0.001]
[1763679716337,0.6284,2893.3,2893.2,0.001]
[1763679718917,0.6284,2893.3,2893.1,0.001]
[1763679719145,0.947,2893.2,2892.9,0.001]
[1763679719347,0.1946,2893.0,2892.9,0.001]
[1763679719525,0.4597,2892.7,2892.1,0.001]
[1763679719846,0.1973,2892.5,2892.1,0.001]
[1763679720047,1.06794392,2892.5,2892.1,0.001]
[1763679720248,0.457,2892.2,2892.1,0.001]
[1763679720647,0.9417,2892.2,2892.1,0.001]
[1763679720849,0.9417,2892.2,2890.7,0.1513]
[1763679721049,0.3886,2891.9,2890.4,0.4563]
[1763679721254,0.3886,2891.9,2889.0,3.7928]
[1763679721255,4.495452,2891.6,2889.3,0.164]
[1763679721419,1.54919264,2890.9,2889.3,0.164]
[1763679721746,0.1979,2890.6,2889.0,0.6001]
[1763679721951,0.4499,2890.3,2889.0,0.6001]
[1763679722355,0.9346,2890.3,2889.3,0.4563]
[1763679722532,0.1887,2890.9,2889.7,0.405504]
[1763679722728,0.4847,2890.7,2889.7,0.405504]
[1763679722934,0.4623,2890.3,2889.7,0.405504]
[1763679723129,0.4623,2890.3,2889.0,0.6001]
[1763679723372,0.947,2890.3,2889.0,0.6001]
[1763679723547,0.947,2890.3,2889.0,0.1438]
[1763679724444,0.947,2890.3,2889.1,0.405504]
[1763679725260,1.49006276,2890.3,2889.1,0.405504]
[1763679725456,2.4158,2890.1,2888.4,0.18097557]
[1763679725671,1.49006276,2890.3,2886.4,1.31019408]
[1763679725672,0.1882,2889.2,2888.3,0.4563]
[1763679726332,0.54306276,2890.3,2889.1,0.6046]
[1763679726533,1.02776276,2890.3,2889.3,0.405504]
[1763679726932,0.4847,2890.2,2889.3,0.405504]
[1763679728387,0.4847,2890.2,2887.1,3.46364269]
[1763679728388,0.4847,2890.2,2888.8,0.1438]
[1763679728973,0.4847,2890.2,2888.9,0.405504]
[1763679731787,0.6509,2889.0,2888.9,0.405504]
[1763679731991,0.6509,2889.0,2887.9,0.1981]
[1763679732152,0.6509,2889.0,2888.0,0.4649]
[1763679732989,0.4644,2888.9,2887.6,0.4649]
[1763679733194,0.54329171,2888.8,2887.6,0.4649]
[1763679733398,0.90699264,2888.6,2887.2,0.4649]
[1763679733692,0.59215846,2888.5,2887.2,0.4649]
[1763679733891,2.366592,2888.5,2887.2,0.4649]
[1763679734092,0.4644,2888.4,2888.3,0.001]
[1763679734492,0.96,2888.4,2888.3,0.001]
[1763679735071,0.54329171,2888.8,2888.3,0.001]
[1763679735283,0.54329171,2888.8,2888.7,0.856404]
[1763679735672,0.54329171,2888.8,2888.7,1.321304]
[1763679736287,0.54329171,2888.8,2888.7,0.856404]
[1763679736784,0.54329171,2888.8,2888.7,1.321304]
[1763679737572,0.54329171,2888.8,2888.7,0.856404]
[1763679738829,1.50329171,2888.8,2888.3,0.001]
[1763679739103,0.4923,2888.4,2888.3,0.001]
[1763679739508,0.9567,2888.4,2888.3,0.001]
[1763679740771,0.4644,2888.9,2888.3,0.001]
[1763679741079,0.4644,2889.7,2888.3,0.406504]
[1763679741284,0.4644,2889.6,2888.3,0.871404]
[1763679741481,0.4644,2889.6,2888.3,0.406504]
[1763679741871,13.268151,2889.3,2888.3,0.001]
[1763679742086,0.90699264,2889.4,2888.3,0.406504]
[1763679742407,5.490221,2889.2,2888.3,0.406504]
[1763679742634,5.490221,2889.2,2888.3,0.001]
[1763679742914,0.4644,2889.1,2888.3,0.001]
[1763679744119,0.90699264,2889.6,2888.3,0.001]
[1763679744120,0.4644,2889.7,2889.0,0.4509]
[1763679744317,1.00772422,2889.7,2889.0,0.4509]
[1763679744627,0.4644,2889.7,2888.6,0.405504]
[1763679745321,0.4644,2889.7,2888.7,0.405504]
[1763679746342,0.4644,2889.7,2888.8,0.405504]
[1763679747487,0.54326519,2889.5,2888.8,0.405504]
[1763679747890,0.71690775,2889.5,2888.8,0.405504]
[1763679749309,0.73183002,2889.4,2888.8,0.405504]
[1763679749625,0.4956,2888.9,2888.3,0.001]
[1763679749789,0.90183002,2888.8,2888.3,0.001]
[1763679749991,0.73183002,2888.7,2888.3,0.001]
[1763679750215,0.73183002,2888.6,2888.3,0.001]
[1763679750414,1.22961361,2889.0,2888.3,0.001]
[1763679750415,0.73183002,2888.5,2888.3,0.001]
[1763679750647,0.92221021,2888.9,2888.3,0.001]
[1763679750648,0.73183002,2888.8,2888.3,0.001]
[1763679750810,0.73183002,2888.7,2888.3,0.001]
[1763679751014,0.73183002,2888.6,2888.3,0.001]
[1763679751253,0.73183002,2888.5,2888.3,0.001]
[1763679751457,1.41891021,2888.8,2888.3,0.001]
[1763679751616,0.4614,2888.4,2888.3,0.001]
[1763679751929,0.73553352,2888.4,2888.3,0.001]
[1763679752344,1.69363352,2888.4,2888.3,0.001]
[1763679752517,1.95521789,2888.4,2888.3,0.001]
[1763679752860,2.27435475,2888.4,2888.3,0.001]
[1763679753151,3.50396836,2888.4,2888.3,0.001]
[1763679754420,5.02609063,2888.4,2888.3,0.001]
[1763679755437,5.02609063,2888.4,2888.0,0.001]
[1763679755438,2.27435475,2888.4,2888.0,0.001]
[1763679755749,1.39718045,2888.1,2888.0,0.001]
[1763679756052,2.45185083,2888.1,2888.0,0.001]
[1763679756220,3.85554347,2888.1,2888.0,0.001]
[1763679757871,3.49205732,2888.1,2888.0,0.001]
[1763679758073,2.82355732,2888.1,2888.0,0.001]
[1763679758253,2.19781259,2888.1,2888.0,0.001]
[1763679758452,1.46227907,2888.1,2888.0,0.001]
[1763679758774,2.1972902,2888.1,2888.0,0.001]
[1763679758975,3.53230081,2888.1,2888.0,0.001]
[1763679759149,2.9325537,2888.1,2888.0,0.001]
[1763679759543,4.15793415,2888.1,2888.0,0.001]
[1763679759746,5.06492679,2888.1,2888.0,0.001]
[1763679760060,3.83954634,2888.1,2886.0,6.43892951]
[1763679760245,3.83954634,2888.1,2886.0,0.1438]
[1763679760246,0.91887359,2886.5,2886.0,0.1438]
[1763679760442,0.91887359,2886.3,2886.0,0.6281]
[1763679760642,0.91887359,2886.5,2886.2,0.4722]
[1763679760877,2.02694718,2886.9,2886.2,0.4722]
[1763679760878,0.73500999,2886.4,2886.2,0.4722]
[1763679761064,0.73500999,2886.3,2886.2,0.4722]
[1763679761398,0.73500999,2886.5,2886.0,0.1438]
[1763679761577,0.73500999,2886.5,2883.8,0.2793]
[1763679761578,0.73500999,2886.4,2885.5,0.4843]
[1763679761785,0.73500999,2886.3,2885.5,0.4843]
[1763679761959,0.73500999,2886.2,2885.5,0.4843]
[1763679762156,0.99109761,2886.2,2885.5,0.4843]
[1763679762368,0.25608762,2886.2,2885.5,0.4843]
[1763679762778,0.99109761,2886.2,2885.1,0.4843]
[1763679763086,1.20650999,2886.1,2885.1,0.4843]
[1763679763289,0.4715,2886.1,2885.1,0.4843]
[1763679763487,0.25608762,2886.2,2885.1,0.4843]
[1763679764074,0.73215842,2886.3,2885.2,0.405504]
[1763679764397,0.6877,2885.2,2884.0,0.6456]
[1763679764692,0.1636,2885.1,2884.0,0.1613]
[1763679764877,1.82586623,2884.9,2883.5,0.4843]
[1763679765087,0.73097359,2884.9,2883.8,0.6456]
[1763679765257,0.4715,2884.8,2883.8,0.1613]
[1763679765765,0.4715,2884.8,2883.6,0.1613]
[1763679765965,0.4715,2884.8,2883.9,0.18106847]
[1763679766367,0.21094662,2884.7,2883.9,0.18106847]
[1763679766566,0.94192021,2884.7,2883.9,0.18106847]
[1763679766767,0.4715,2884.6,2883.9,0.18106847]
[1763679768005,4.33154204,2886.7,2884.5,0.6362]
[1763679768006,1.39037359,2885.5,2884.5,0.6362]
[1763679768169,0.6621,2884.6,2883.9,0.18106847]
[1763679768374,0.6621,2884.6,2883.6,0.6456]
[1763679768575,0.6621,2884.6,2883.8,0.001]
[1763679768770,0.4715,2884.5,2883.8,0.001]
[1763679768979,0.6621,2884.6,2883.8,0.001]
[1763679769194,0.1636,2884.6,2883.8,0.001]
[1763679769388,4.823151,2885.2,2883.9,0.4843]
[1763679769661,4.823151,2885.2,2883.5,0.001]
[1763679769662,0.3528,2883.9,2883.5,0.001]
[1763679769884,0.3528,2883.9,2883.2,0.001]
[1763679769885,0.4985,2883.6,2883.2,0.001]
[1763679770068,0.4715,2883.8,2883.2,0.001]
[1763679770683,0.4985,2883.3,2883.2,0.001]
[1763679771198,0.97,2883.3,2883.2,0.001]
[1763679771775,0.4715,2883.7,2883.2,0.001]
[1763679772377,0.1892,2883.9,2883.2,0.001]
[1763679772691,0.4985,2883.3,2883.2,0.001]
[1763679773082,0.97,2883.3,2883.2,0.001]
[1763679773716,0.4715,2883.7,2883.2,0.001]
[1763679773897,0.1892,2883.9,2883.2,0.001]
[1763679774225,1.00822912,2885.1,2883.8,0.4722]
[1763679774498,0.1892,2884.9,2883.2,0.406504]
[1763679774705,0.1892,2884.9,2883.3,0.4843]
[1763679774900,0.1892,2884.9,2883.2,0.406504]
[1763679774901,3.67704,2884.6,2883.2,0.406504]
[1763679775064,0.90699264,2884.3,2883.2,0.001]
[1763679775265,2.423248,2884.2,2883.2,0.001]
[1763679775463,3.06015,2884.5,2883.2,0.001]
[1763679775702,0.90699264,2884.1,2883.2,0.001]
[1763679775998,4.383961,2884.0,2883.2,0.001]
[1763679776166,0.4715,2884.0,2883.2,0.001]
[1763679777779,0.4985,2883.3,2883.2,0.001]
[1763679777963,2.57015488,2883.9,2883.2,0.001]
[1763679777964,0.54437588,2883.9,2883.2,0.001]
[1763679778696,0.54437588,2883.9,2883.4,0.405504]
[1763679778869,0.54437588,2883.9,2883.8,0.4722]
[1763679779496,0.54437588,2883.9,2883.2,0.406504]
[1763679779820,0.54437588,2883.9,2883.2,0.001]
[1763679780709,1.01587588,2883.9,2883.2,0.001]
[1763679780909,0.90699264,2883.7,2883.2,0.001]
[1763679781074,1.01587588,2883.9,2883.2,0.001]
[1763679781075,0.4715,2883.8,2883.2,0.001]
[1763679781273,1.01587588,2883.9,2883.2,0.001]
[1763679781515,0.4715,2883.9,2883.2,0.001]
[1763679781672,7.15276641,2884.7,2883.2,0.001]
[1763679781673,0.54436763,2884.2,2883.2,0.890804]
[1763679781873,0.54436763,2884.2,2883.2,0.001]
[1763679782078,8.305283,2884.0,2883.2,0.001]
[1763679782390,2.489665,2883.8,2883.2,0.001]
[1763679782586,0.90699264,2883.6,2883.2,0.001]
[1763679783107,0.4715,2883.9,2883.2,0.001]
[1763679783312,0.72485717,2884.3,2883.2,0.001]
[1763679783476,0.4715,2884.3,2883.2,0.001]
[1763679783682,0.21033498,2884.2,2883.2,0.840804]
[1763679783878,0.90699264,2884.7,2883.2,0.840804]
[1763679784077,0.90699264,2884.3,2883.2,0.840804]
[1763679784282,8.38824,2884.5,2883.1,0.1448]
[1763679784478,0.90699264,2884.0,2882.3,0.4843]
[1763679785011,1.57957359,2884.9,2883.9,0.1448]
[1763679785185,30.0,2884.7,2882.2,0.189]
[1763679785388,0.90699264,2883.8,2882.2,0.189]
[1763679785688,0.90699264,2883.6,2882.4,0.405504]
[1763679785986,0.72633191,2883.6,2882.4,0.405504]
[1763679786199,0.4715,2883.5,2882.3,0.4843]
[1763679786398,2.95804264,2883.3,2882.2,0.189]
[1763679786607,2.96629653,2883.2,2883.1,0.001]
[1763679786905,7.733878,2883.3,2883.1,0.001]
[1763679787107,0.90699264,2883.3,2883.1,0.001]
[1763679787306,0.4715,2883.2,2883.1,0.001]
[1763679787607,0.90699264,2883.3,2883.1,0.001]
[1763679787823,0.72842106,2883.6,2883.1,0.001]
[1763679788031,0.72842106,2883.7,2883.1,0.001]
[1763679788331,3.558078,2883.7,2883.1,0.001]
[1763679788493,0.72842106,2883.6,2883.1,0.001]
[1763679788834,3.045878,2883.7,2883.1,0.001]
[1763679789016,0.72842106,2883.6,2883.1,0.001]
[1763679789323,0.4842,2883.2,2883.1,0.001]
[1763679789523,3.04484,2883.2,2883.1,0.001]
[1763679789723,4.66313242,2883.2,2883.1,0.001]
[1763679790025,13.85889554,2883.2,2883.1,0.001]
[1763679790319,14.47147793,2883.2,2883.1,0.001]
[1763679790524,22.89643693,2883.2,2883.1,0.001]
[1763679790720,20.45813393,2883.2,2883.1,0.001]
[1763679790923,15.31360029,2883.2,2883.1,0.001]
[1763679791224,13.47585311,2883.2,2883.1,0.001]
[1763679791390,18.97924511,2883.2,2883.1,0.001]
[1763679791590,19.08823775,2883.2,2882.9,0.001]
[1763679791800,19.08823775,2883.2,2878.6,0.1822]
[1763679791801,0.1947,2880.5,2878.7,1.31019408]